lending/lending_fUSD_20260102
["ID","MTS","AMOUNT","RATE_DAILY","PERIOD"]
[400331687,1767381045077,-481.729128,0.0003844,2]
[400331688,1767381045087,-304.479892,0.0003844,7]
[400331689,1767381045096,-481.729128,0.0003844,2]
[400331690,1767381045106,-304.479892,0.0003844,7]
[400331691,1767381045116,-304.479892,0.0003844,7]
[400331692,1767381045126,-151.0,0.0003844,120]
[400331693,1767381045138,-151.0,0.0003844,120]
[400331694,1767381045148,-151.0,0.0003844,120]
[400331695,1767381045158,-150.0,0.00038466,7]
[400331696,1767381045169,-150.0,0.00038466,7]
[400331697,1767381045178,-150.0,0.00038466,7]
[400331698,1767381045191,-150.0,0.00038466,7]
[400331699,1767381045200,-150.0,0.00038466,7]
[400331700,1767381045210,-150.0,0.00038466,7]
[400331701,1767381045219,-150.0,0.00038466,7]
[400331702,1767381045228,-150.44068196,0.00038466,7]
[400331703,1767381045239,-150.0,0.00038466,7]
[400331704,1767381045248,-150.0,0.00038466,7]
[400331705,1767381045258,-150.55633321,0.00038466,7]
[400331706,1767381045269,-150.0,0.00038466,7]
[400331707,1767381045279,-150.0,0.00038466,7]
[400331708,1767381045287,-150.0,0.00038482,2]
[400331709,1767381045524,-151.0,0.00038483,120]
[400331710,1767381045534,-151.0,0.00038483,120]
[400331711,1767381045544,-151.0,0.00038483,120]
[400331712,1767381045553,-208.12,0.00038513,2]
[400331713,1767381045563,-300.0,0.00038646,2]
[400331714,1767381045572,-300.0,0.00038646,2]
[400331715,1767381045581,-303.85501722,0.00038646,2]
[400331716,1767381045591,-300.0,0.00038646,2]
[400331717,1767381045600,-300.0,0.00038646,2]
[400331718,1767381045609,-595.88867019,0.00038646,2]
[400331719,1767381045618,-364.48459935,0.00038646,2]
[400331720,1767381045626,-300.0,0.00038646,2]
[400331721,1767381045635,-300.0,0.00038646,2]
[400331722,1767381045645,-300.0,0.00038646,2]
[400331723,1767381045654,-300.0,0.00038646,2]
[400331724,1767381045663,-300.0,0.00038646,2]
[400331725,1767381045673,-300.0,0.00038646,2]
[400331726,1767381045682,-303.47175408,0.00038646,2]
[400331727,1767381045692,-300.0,0.00038646,2]
[400331728,1767381045701,-578.04560059,0.00038646,2]
[400331729,1767381045710,-300.0,0.00038646,2]
[400331730,1767381045719,-300.0,0.00038646,2]
[400331731,1767381045728,-300.0,0.00038646,2]
[400331733,1767381045739,-300.0,0.00038646,2]
[400331734,1767381045749,-300.0,0.00038646,2]
[400331735,1767381045760,-300.0,0.00038646,2]
[400331737,1767381045770,-615.94778257,0.00038646,2]
[400331739,1767381045779,-304.64549813,0.00038646,2]
[400331741,1767381045788,-300.0,0.00038646,2]
[400331743,1767381045797,-300.0,0.00038646,2]
[400331745,1767381045807,-300.0,0.00038646,2]
[400331747,1767381045816,-300.0,0.00038646,2]
[400331749,1767381045826,-300.0,0.00038646,2]
[400331751,1767381045835,-303.85501722,0.00038646,2]
[400331753,1767381045845,-300.0,0.00038646,2]
[400331755,1767381045853,-300.0,0.00038646,2]
[400331757,1767381045862,-595.88867019,0.00038646,2]
[400331759,1767381045871,-364.48459935,0.00038646,2]
[400331761,1767381045880,-300.0,0.00038646,2]
[400331763,1767381045889,-300.0,0.00038646,2]
[400331765,1767381045898,-300.0,0.00038646,2]
[400331768,1767381045908,-300.0,0.00038646,2]
[400331769,1767381045917,-300.0,0.00038646,2]
[400331771,1767381045926,-300.0,0.00038646,2]
[400331772,1767381045936,-303.47175408,0.00038646,2]
[400331773,1767381045945,-300.0,0.00038646,2]
[400331774,1767381045954,-578.04560059,0.00038646,2]
[400331775,1767381045964,-300.0,0.00038646,2]
[400331776,1767381045974,-300.0,0.00038646,2]
[400331777,1767381045983,-300.0,0.00038646,2]
[400331778,1767381045992,-300.0,0.00038646,2]
[400331779,1767381046002,-300.0,0.00038646,2]
[400331781,1767381046011,-300.0,0.00038646,2]
[400331782,1767381046020,-615.94778257,0.00038646,2]
[400331783,1767381046030,-304.64549813,0.00038646,2]
[400331784,1767381046039,-300.0,0.00038646,2]
[400331785,1767381046049,-300.0,0.00038646,2]
[400331786,1767381046059,-300.0,0.00038646,2]
[400331787,1767381046068,-2000.0,0.000388,2]
[400331788,1767381046078,-18563.12622953,0.00038837,2]
[400331789,1767381046087,-28541.44704938,0.00038837,2]
[400331790,1767381046096,-5530.0,0.000389,5]
[400331791,1767381046106,-150.96828082,0.00038941,2]
[400331792,1767381046116,-300.0,0.00039,3]
[400331793,1767381046126,-5735.288542,0.00039041,120]
[400331794,1767381046136,-5735.288542,0.00039041,120]
[400331795,1767381046146,-5735.288542,0.00039041,120]
[400331796,1767381046155,-5735.288542,0.00039041,120]
[400331797,1767381046164,-309.29654756,0.00039155,2]
[400331798,1767381046174,-150.0,0.00039178,7]
[400331799,1767381046184,-1000.0,0.00039268,2]
[400331800,1767381046193,-300.0,0.000393,3]
[400331801,1767381046202,-2433.0,0.00039418,2]
[400331802,1767381046212,-500.0,0.00039479,30]
[400331803,1767381046222,-500.0,0.00039479,30]
[400331804,1767381046231,-500.0,0.00039479,30]
[400331805,1767381046240,-500.0,0.00039479,30]
[400331806,1767381046250,-500.0,0.00039479,30]
[400331807,1767381046259,-500.0,0.00039479,30]
[400331808,1767381046268,-500.0,0.00039479,30]
[400331809,1767381046277,-500.0,0.00039479,30]
[400331810,1767381046287,-500.0,0.00039479,30]
[400331811,1767381046296,-500.0,0.00039479,30]
[400331812,1767381046305,-1180.0,0.00039627,14]
[400331813,1767381046316,-474.84232224,0.00039836,2]
[400331814,1767381046327,-150.0,0.0003989,7]
[400331815,1767381046336,-150.0,0.0003989,7]
[400331816,1767381046345,-502.0,0.00039953,2]
[400331817,1767381046360,-320.74051982,0.00040524,2]
[400331818,1767381046369,-150.0,0.00040603,7]
[400331819,1767381046378,-150.0,0.00040603,7]
[400331820,1767381046389,-150.0,0.00040603,7]
[400331821,1767381046399,-150.0,0.00040603,7]
[400331822,1767381046408,-150.0,0.00040603,7]
[400331823,1767381046418,-150.0,0.00040603,7]
[400331824,1767381046428,-150.0,0.00040603,7]
[400331825,1767381046438,-297.144959,0.00040844,120]
[400331826,1767381046447,-297.144959,0.00040844,120]
[400331827,1767381046456,-297.144959,0.00040844,120]
[400331828,1767381046466,-297.144959,0.00040844,120]
[400331829,1767381046475,-18563.12622953,0.00040845,15]
[400331830,1767381046485,-28541.44704938,0.00040845,15]
[400331831,1767381046494,-500.0,0.00040882,120]
[400331832,1767381046504,-150.9682808,0.00040897,120]
[400331833,1767381046514,-500.0,0.0004094,2]
[400331834,1767381046525,-500.0,0.0004094,120]
[400331835,1767381046535,-500.0,0.0004094,30]
[400331836,1767381046546,-7320.0,0.00041026,5]
[400331837,1767381046555,-999.0,0.00041095,120]
[400331838,1767381046565,-314.02192836,0.00041096,2]
[400331839,1767381046575,-640.65549569,0.00041096,107]
[400331840,1767381046585,-502.0,0.0004113,10]
[400331841,1767381046595,-1222.64,0.00041315,120]
[400331842,1767381046604,-150.0,0.00041315,30]
[400331843,1767381046613,-150.0,0.00041315,30]
[400331844,1767381046622,-800.0,0.00041524,13]
[400331845,1767381046631,-800.0,0.00041524,13]
[400331846,1767381046641,-800.0,0.00041524,13]
[400331847,1767381046650,-800.0,0.00041524,13]
[400331848,1767381046660,-800.0,0.00041524,13]
[400331849,1767381046670,-800.0,0.00041524,13]
[400331850,1767381046681,-800.0,0.00041524,13]
[400331851,1767381046690,-800.0,0.00041524,13]
[400331852,1767381046700,-800.0,0.00041524,13]
[400331853,1767381046709,-800.0,0.00041524,13]
[400331854,1767381046719,-800.0,0.00041524,13]
[400331855,1767381046728,-800.0,0.00041524,13]
[400331856,1767381046738,-800.0,0.00041524,13]
[400331857,1767381046748,-800.0,0.00041524,13]
[400331858,1767381046757,-800.0,0.00041524,13]
[400331859,1767381046766,-800.0,0.00041524,13]
[400331860,1767381046776,-800.0,0.00041524,13]
[400331861,1767381046787,-800.0,0.00041524,13]
[400331862,1767381046797,-800.0,0.00041524,13]
[400331863,1767381046806,-800.0,0.00041524,13]
[400331864,1767381046816,-510.0,0.00041524,13]
[400331865,1767381046826,-500.0,0.0004158,60]
[400331866,1767381046836,-800.0,0.0004158,60]
[400331867,1767381046846,-500.0,0.0004158,60]
[400331868,1767381046857,-5611.0,0.00041589,2]
[400331869,1767381046868,-152.26,0.000416,14]
[400331870,1767381046879,-280.36,0.000416,14]
[400331871,1767381046890,-399.83079592,0.00041845,2]
[400331872,1767381046900,-332.60791905,0.00041893,2]
[400331873,1767381046910,-1000.0,0.00041899,14]
[400331874,1767381046919,-2000.0,0.000419,2]
[400331875,1767381046929,-1312.65,0.00041973,30]
[400331876,1767381046942,-482.01,0.00041973,30]
[400331877,1767381046952,-482.01,0.00041973,30]
[400331878,1767381046961,-660.52,0.00041973,30]
[400331879,1767381046970,-482.01,0.00041973,30]
[400331880,1767381046980,-482.01,0.00041973,30]
[400331881,1767381046989,-481.21,0.00041973,30]
[400331882,1767381046998,-232.0,0.00042,2]
[400331883,1767381047008,-1000.0,0.00042,7]
[400331884,1767381047017,-150.0,0.00042027,30]
[400331885,1767381047027,-519.15105214,0.00042039,14]
[400331886,1767381047036,-1016.21843842,0.00042094,50]
[400331887,1767381047047,-1059.27603986,0.00042094,50]
[400331888,1767381047057,-1018.48959135,0.00042094,50]
[400331889,1767381047067,-1086.83651079,0.00042094,50]
[400331890,1767381047077,-1010.17789993,0.00042094,50]
[400331891,1767381047086,-1145.55333462,0.00042094,50]
[400331892,1767381047096,-1092.90788301,0.00042094,50]
[400331893,1767381047105,-1064.92609657,0.00042094,50]
[400331894,1767381047116,-1087.2227818,0.00042094,50]
[400331895,1767381047126,-1094.61334289,0.00042094,50]
[400331896,1767381047134,-1106.60427131,0.00042094,50]
[400331897,1767381047144,-1041.09835379,0.00042094,50]
[400331898,1767381047154,-1081.44289071,0.00042094,50]
[400331899,1767381047165,-1070.47165085,0.00042094,50]
[400331900,1767381047175,-1008.68684809,0.00042094,50]
[400331901,1767381047184,-1120.61348788,0.00042094,50]
[400331902,1767381047195,-1096.80530514,0.00042094,50]
[400331903,1767381047205,-1117.16206864,0.00042094,50]
[400331904,1767381047214,-1131.82487593,0.00042094,50]
[400331905,1767381047224,-1098.01742682,0.00042094,50]
[400331906,1767381047233,-1021.32134234,0.00042094,50]
[400331907,1767381047243,-1135.58088552,0.00042094,50]
[400331908,1767381047252,-1094.90462504,0.00042094,50]
[400331909,1767381047261,-1048.32987638,0.00042094,50]
[400331910,1767381047271,-1063.08348012,0.00042094,50]
[400331911,1767381047281,-1084.22507846,0.00042094,50]
[400331912,1767381047289,-1096.36021215,0.00042094,50]
[400331913,1767381047299,-1026.75494114,0.00042094,50]
[400331914,1767381047309,-1034.02153338,0.00042094,50]
[400331915,1767381047319,-1168.34926909,0.00042094,50]
[400331916,1767381047329,-178.8,0.0004211,30]
[400331917,1767381047338,-171.08,0.0004211,30]
[400331918,1767381047349,-472.19,0.0004211,30]
[400331919,1767381047360,-178.8,0.0004211,30]
[400331920,1767381047370,-171.08,0.0004211,30]
[400331921,1767381047382,-465.87,0.0004211,30]
[400331922,1767381047392,-151.21,0.0004211,30]
[400331923,1767381047402,-178.8,0.0004211,30]
[400331924,1767381047411,-171.08,0.0004211,30]
[400331925,1767381047422,-465.87,0.0004211,30]
[400331926,1767381047432,-171.08,0.0004211,30]
[400331927,1767381047442,-178.8,0.0004211,30]
[400331928,1767381047452,-178.8,0.0004211,30]
[400331929,1767381047462,-171.08,0.0004211,30]
[400331930,1767381047471,-156.7,0.0004211,30]
[400331931,1767381047480,-170.78,0.0004211,30]
[400331932,1767381047490,-800.0,0.00042128,60]
[400331933,1767381047499,-500.0,0.00042128,60]
[400331934,1767381047508,-1000.0,0.00042128,14]
[400331935,1767381047518,-1000.0,0.00042138,14]
[400331936,1767381047527,-1000.0,0.00042142,14]
[400331937,1767381047537,-999.0,0.00042191,120]
[400331938,1767381047546,-502.0,0.00042308,10]
[400331939,1767381047556,-1000.0,0.00042326,14]
[400331940,1767381047565,-151.0,0.00042326,120]
[400331941,1767381047574,-151.0,0.00042326,120]
[400331942,1767381047584,-151.0,0.00042326,120]
[400331943,1767381047594,-150.0,0.00042347,14]
[400331944,1767381047606,-150.0,0.00042387,14]
[400331945,1767381047616,-2433.0,0.00042418,2]
[400331946,1767381047625,-150.0,0.00042432,14]
[400331947,1767381047634,-150.0,0.00042449,14]
[400331948,1767381047646,-171.38516895,0.00042482,14]
[400331949,1767381047655,-1000.0,0.000425,2]
[400331950,1767381047664,-1000.0,0.00042593,14]
[400331951,1767381047673,-150.0,0.00042602,120]
[400331952,1767381047683,-151.0,0.00042609,120]
[400331953,1767381047692,-151.0,0.00042609,120]
[400331954,1767381047702,-33168.7971319,0.00042612,2]
[400331955,1767381047711,-1878.3594477,0.00042612,2]
[400331956,1767381047722,-151.0,0.00042612,120]
[400331957,1767381047733,-5735.288542,0.00042612,120]
[400331958,1767381047743,-5735.288542,0.00042612,120]
[400331959,1767381047754,-5735.288542,0.00042612,120]
[400331960,1767381047764,-5735.288542,0.00042612,120]
[400331961,1767381047773,-151.0,0.00042612,120]
[400331962,1767381047783,-151.0,0.00042612,120]
[400331963,1767381047792,-1000.0,0.00042619,14]
[400331964,1767381047801,-1000.0,0.00042629,14]
[400331965,1767381047810,-1000.0,0.00042661,14]
[400331966,1767381047819,-800.0,0.00042676,60]
[400331967,1767381047828,-500.0,0.00042676,60]
[400331968,1767381047837,-695.6,0.00042693,120]
[400331969,1767381047847,-150.0,0.0004274,30]
[400331970,1767381047856,-150.0,0.0004274,30]
[400331971,1767381047865,-150.00000001,0.0004274,30]
[400331972,1767381047874,-150.0,0.0004274,30]
[400331973,1767381047883,-150.0,0.0004274,30]
[400331974,1767381047892,-150.0,0.0004274,30]
[400331975,1767381047901,-150.0,0.0004274,30]
[400331976,1767381047912,-151.85727787,0.0004274,30]
[400331977,1767381047920,-150.0,0.0004274,30]
[400331978,1767381047930,-150.0,0.0004274,30]
[400331979,1767381047939,-150.00000001,0.0004274,30]
[400331980,1767381047948,-208.12,0.00042751,14]
[400331981,1767381047957,-208.12,0.00042825,14]
[400331982,1767381047967,-474.84232224,0.00042843,9]
[400331983,1767381047977,-300.0,0.00042851,30]
[400331984,1767381047986,-300.0,0.00042851,30]
[400331985,1767381047997,-666.0,0.00042851,30]
[400331986,1767381048007,-332.02134088,0.00042852,120]
[400331987,1767381048016,-151.0,0.00042852,120]
[400331988,1767381048025,-151.0,0.00042852,120]
[400331989,1767381048034,-151.0,0.00042852,120]
[400331990,1767381048043,-189.224024,0.00042852,120]
[400331991,1767381048052,-481.729128,0.00042852,2]
[400331992,1767381048061,-481.729128,0.00042852,2]
[400331993,1767381048070,-304.479892,0.00042852,7]
[400331994,1767381048079,-481.729128,0.00042852,2]
[400331995,1767381048088,-304.479892,0.00042852,7]
[400331996,1767381048097,-481.729128,0.00042852,2]
[400331997,1767381048106,-304.479892,0.00042852,7]
[400331998,1767381048115,-304.479892,0.00042852,7]
[400331999,1767381048123,-155.121776,0.00042852,120]
[400332000,1767381048133,-151.0,0.00042852,120]
[400332001,1767381048143,-300.0,0.00042852,30]
[400332002,1767381048152,-300.0,0.00042852,30]
[400332003,1767381048161,-695.86626981,0.00042852,30]
[400332004,1767381048170,-151.0,0.00042852,120]
[400332005,1767381048179,-151.0,0.00042852,120]
[400332006,1767381048188,-151.0,0.00042852,120]
[400332007,1767381048197,-18563.12622953,0.00042853,15]
[400332008,1767381048206,-150.9682808,0.00042853,120]
[400332009,1767381048215,-28541.44704938,0.00042853,15]
[400332010,1767381048224,-1370.47270556,0.00042853,2]
[400332011,1767381048234,-300.0,0.00042869,30]
[400332012,1767381048243,-500.0,0.0004287,3]
[400332013,1767381048252,-500.0,0.0004287,3]
[400332014,1767381048261,-500.0,0.0004287,3]
[400332015,1767381048270,-500.0,0.0004287,3]
[400332016,1767381048279,-500.0,0.0004287,3]
[400332017,1767381048289,-500.0,0.0004287,3]
[400332018,1767381048297,-459.39100632,0.0004289,14]
[400332019,1767381048307,-480.84894786,0.00042891,14]
[400332020,1767381048316,-300.0,0.00042899,30]
[400332021,1767381048326,-300.0,0.00042899,30]
[400332022,1767381048335,-150.0,0.000429,27]
[400332023,1767381048346,-150.0,0.000429,27]
[400332024,1767381048360,-150.0,0.000429,60]
[400332025,1767381048370,-238.2,0.000429,60]
[400332026,1767381048380,-253.0,0.000429,41]
[400332027,1767381048391,-398.0,0.000429,3]
[400332028,1767381048402,-306.0,0.000429,30]
[400332029,1767381048411,-643.47683394,0.000429,30]
[400332030,1767381048420,-643.47683394,0.000429,30]
[400332031,1767381048430,-201.0,0.000429,30]
[400332032,1767381048439,-187.19,0.000429,47]
[400332033,1767381048449,-1037.57632201,0.000429,30]
[400332034,1767381048459,-200.0,0.000429,24]
[400332035,1767381048470,-979.0,0.000429,30]
[400332036,1767381048480,-300.0,0.00042903,30]
[400332037,1767381048489,-4816.0,0.00042904,120]
[400332038,1767381048498,-300.0,0.00042914,30]
[400332039,1767381048508,-150.0,0.00042925,60]
[400332040,1767381048517,-300.0,0.0004293,30]
[400332041,1767381048526,-414.39,0.00042932,30]
[400332042,1767381048535,-150.0,0.00042932,30]
[400332043,1767381048544,-164.0,0.00042937,14]
[400332044,1767381048553,-154.0,0.00042937,14]
[400332045,1767381048562,-164.0,0.00042937,14]
[400332046,1767381048571,-154.0,0.00042937,14]
[400332047,1767381048580,-164.0,0.00042937,14]
[400332048,1767381048589,-157.0,0.00042937,14]
[400332049,1767381048598,-154.0,0.00042937,14]
[400332050,1767381048608,-175.29287023,0.00042937,14]
[400332051,1767381048617,-157.0,0.00042937,14]
[400332052,1767381048626,-154.0,0.00042937,14]
[400332053,1767381048635,-157.0,0.00042937,14]
[400332054,1767381048644,-154.0,0.00042937,14]
[400332055,1767381048653,-157.0,0.00042937,14]
[400332056,1767381048662,-154.0,0.00042937,14]
[400332057,1767381048671,-157.0,0.00042937,14]
[400332058,1767381048680,-154.0,0.00042937,14]
[400332059,1767381048689,-157.0,0.00042937,14]
[400332060,1767381048698,-154.0,0.00042937,14]
[400332061,1767381048707,-230.18168545,0.00042937,14]
[400332062,1767381048716,-163.96549456,0.00042937,14]
[400332063,1767381048725,-500.0,0.00042938,2]
[400332064,1767381048735,-500.0,0.00042938,120]
[400332065,1767381048745,-342.29233774,0.00042938,30]
[400332066,1767381048754,-500.0,0.00042942,2]
[400332067,1767381048764,-500.0,0.00042942,2]
[400332068,1767381048774,-500.0,0.00042942,2]
[400332069,1767381048785,-500.0,0.00042942,2]
[400332070,1767381048794,-500.0,0.00042942,2]
[400332071,1767381048805,-500.0,0.00042942,2]
[400332072,1767381048815,-500.0,0.00042942,2]
[400332073,1767381048824,-500.0,0.00042942,2]
[400332074,1767381048834,-492.10833622,0.00042942,2]
[400332075,1767381048843,-4911.85258954,0.00042942,2]
[400332076,1767381048853,-1000.0,0.00042942,65]
[400332077,1767381048862,-297.144959,0.00042942,120]
[400332078,1767381048871,-297.144959,0.00042942,120]
[400332079,1767381048881,-297.144959,0.00042942,120]
[400332080,1767381048891,-297.144959,0.00042942,120]
[400332081,1767381048901,-235.84568341,0.00042943,7]
[400332082,1767381048910,-235.84568341,0.00042943,7]
[400332083,1767381048919,-1521.99278491,0.00042943,120]
[400332084,1767381048929,-302.0,0.00042943,120]
[400332085,1767381048939,-200.0,0.00042943,7]
[400332086,1767381048948,-200.0,0.00042943,7]
[400332087,1767381048958,-278.36328388,0.0004295,120]
[400332088,1767381048967,-150.0,0.0004295,120]
[400332089,1767381048977,-151.0,0.00042952,120]
[400332090,1767381048987,-2125.0564036,0.00042952,30]
[400332091,1767381048998,-2125.0564036,0.00042952,30]
[400332092,1767381049007,-660.5639634,0.00042953,30]
[400332093,1767381049016,-660.5639634,0.00042953,30]
[400332094,1767381049025,-82593.67914517,0.00042953,27]
[400332095,1767381049034,-5419.44662054,0.00042953,4]
[400332096,1767381049043,-1114834.98986517,0.00042953,7]
[400332097,1767381049151,-891.34,0.00025767,2]
[400332098,1767381049161,-453.0,0.00029775,2]
[400332099,1767381049170,-453.0,0.00029912,2]
[400332100,1767381049179,-565.0,0.00033418,2]
[400332101,1767381049188,-151.0,0.00036829,31]
[400332102,1767381049197,-24.48993932,0.00036829,31]
[400332103,1767381049208,-126.51006068,0.00036829,31]
[400332104,1767381049217,-151.0,0.00042852,120]
[400332105,1767381049226,-151.0,0.00042852,120]
[400332106,1767381049235,-20596.61774584,0.00042953,7]
[400332107,1767381049250,-242.937528,0.00036829,31]
[400332108,1767381049259,-55.56843704,0.00042953,7]
[400332109,1767381049270,-897.6238096,0.00042953,7]
[400332110,1767381049281,-3318.44912896,0.00042953,7]
[400332111,1767381049293,-800.197906,0.00042953,7]
[400332112,1767381049304,-1961.60107269,0.00042953,7]
[400332113,1767381049315,-371.36820323,0.00042953,7]
[400332114,1767381049327,-997.91842106,0.00042953,7]
[400332115,1767381049337,-307.97656556,0.00042953,7]
[400332116,1767381049352,-1397.18855336,0.00042953,7]
[400332117,1767381049364,-274.543,0.00042953,7]
[400332118,1767381049712,-1038.46153846,0.00024879,2]
[400332119,1767381049722,-500.0,0.00024879,2]
[400332120,1767381049731,-315.79440336,0.00024879,2]
[400332121,1767381049741,-1038.46153846,0.00024879,2]
[400332122,1767381049750,-500.0,0.00024879,2]
[400332123,1767381049760,-1038.46153846,0.00024879,2]
[400332124,1767381049770,-453.0,0.00030049,2]
[400332125,1767381049780,-276.495859,0.000395,2]
[400332126,1767381049790,-219.43152554,0.00042953,7]
[400332127,1767381049810,-358.8,0.00024779,2]
[400332128,1767381049822,-6437.02902888,0.00024779,2]
[400332129,1767381049833,-2950.711,0.00024779,2]
[400332130,1767381054843,-251.02708378,0.00024769,2]
[400332131,1767381058608,500.0,0.00024769,2]
[400332132,1767381058638,500.0,0.00024769,2]
[400332133,1767381058669,659.12813471,0.00024769,2]
[400332134,1767381058695,501.81860917,0.00024769,2]
[400332135,1767381058721,564.60176011,0.00024769,2]
[400332136,1767381058747,157.79600896,0.00024769,2]
[400332137,1767381058776,659.12813471,0.00024769,2]
[400332138,1767381058804,472.86349622,0.00024769,2]
[400332139,1767381058834,659.12813471,0.00024769,2]
[400332140,1767381058864,659.12813471,0.00024769,2]
[400332141,1767381058896,659.12813471,0.00024769,2]
[400332142,1767381058928,659.12813471,0.00024769,2]
[400332143,1767381058960,659.12813471,0.00024769,2]
[400332144,1767381058990,659.12813471,0.00024769,2]
[400332145,1767381059020,659.12813471,0.00024769,2]
[400332146,1767381059050,659.12813471,0.00024769,2]
[400332147,1767381059081,209.59461088,0.00024769,2]
[400332148,1767381060933,-449.53352383,0.00024769,2]
[400332149,1767381060964,-659.12813471,0.00024769,2]
[400332150,1767381060996,-659.12813471,0.00024769,2]
[400332151,1767381061027,-659.12813471,0.00024769,2]
[400332152,1767381061059,-659.12813471,0.00024769,2]
[400332153,1767381061091,-659.12813471,0.00024769,2]
[400332154,1767381061123,-659.12813471,0.00024769,2]
[400332155,1767381061154,-532.27720111,0.00024769,2]
[400332156,1767381067125,-300.0,0.00024768,2]
[400332157,1767381067169,-126.8509336,0.00024769,2]
[400332158,1767381067201,-659.12813471,0.00024769,2]
[400332159,1767381067233,-659.12813471,0.00024769,2]
[400332160,1767381067266,-659.12813471,0.00024769,2]
[400332161,1767381067298,-659.12813471,0.00024769,2]
[400332162,1767381067330,-659.12813471,0.00024769,2]
[400332163,1767381067363,-659.12813471,0.00024769,2]
[400332164,1767381067397,-577.64238157,0.00024769,2]
[400332165,1767381070506,-195.27522891,0.00024769,2]
[400332166,1767381070547,-81.48575314,0.00024769,2]
[400332167,1767381070584,-659.12813471,0.00024769,2]
[400332168,1767381070623,-659.12813471,0.00024769,2]
[400332169,1767381070660,-659.12813471,0.00024769,2]
[400332170,1767381070698,-659.12813471,0.00024769,2]
[400332171,1767381070735,-659.12813471,0.00024769,2]
[400332172,1767381070777,-659.12813471,0.00024769,2]
[400332173,1767381070814,-659.12813471,0.00024769,2]
[400332174,1767381073458,-659.12813471,0.00024769,2]
[400332175,1767381073503,-659.12813471,0.00024769,2]
[400332176,1767381073543,-659.12813471,0.00024769,2]
[400332177,1767381073580,-659.12813471,0.00024769,2]
[400332178,1767381073615,-659.12813471,0.00024769,2]
[400332179,1767381073650,-659.12813471,0.00024769,2]
[400332180,1767381073684,-659.12813471,0.00024769,2]
[400332181,1767381073724,-113.08797935,0.00024769,2]
[400332182,1767381076713,-546.04015536,0.00024769,2]
[400332183,1767381076751,-659.12813471,0.00024769,2]
[400332184,1767381076789,-659.12813471,0.00024769,2]
[400332185,1767381076826,-659.12813471,0.00024769,2]
[400332186,1767381076862,-659.12813471,0.00024769,2]
[400332187,1767381076899,-659.12813471,0.00024769,2]
[400332188,1767381076939,-659.12813471,0.00024769,2]
[400332189,1767381076975,-339.26393805,0.00024769,2]
[400332190,1767381080218,-319.86419666,0.00024769,2]
[400332191,1767381080255,-659.12813471,0.00024769,2]
[400332192,1767381080288,-659.12813471,0.00024769,2]
[400332193,1767381080321,-659.12813471,0.00024769,2]
[400332194,1767381080357,-659.12813471,0.00024769,2]
[400332195,1767381080394,-659.12813471,0.00024769,2]
[400332196,1767381080426,-659.12813471,0.00024769,2]
[400332197,1767381080797,-659.12813471,0.00024769,2]
[400332198,1767381083214,-659.12813471,0.00024769,2]
[400332199,1767381083247,-659.12813471,0.00024769,2]
[400332200,1767381083280,-659.12813471,0.00024769,2]
[400332201,1767381083312,-659.12813471,0.00024769,2]
[400332202,1767381083344,-659.12813471,0.00024769,2]
[400332203,1767381083380,-322.76602397,0.00024769,2]
[400332204,1767381083411,-500.0,0.00024769,2]
[400332205,1767381083441,-358.60874849,0.00024769,2]
[400332206,1767381083470,-500.0,0.00024769,2]